[Event "GER-ch Youth-U14w 2022"]
[Site "Willingen"]
[Date "2022.06.08"]
[Round "5.10"]
[White "Englert, Lin"]
[Black "Hergenroeder, Cora"]
[Result "1/2-1/2"]
[ECO "D08"]
[WhiteElo "1503"]
[BlackElo "1453"]
[Annotator "NA RC COMBH"]
[PlyCount "60"]
[EventDate "2022.06.05"]
[EventType "swiss"]
[EventRounds "9"]
[EventCountry "GER"]
[SourceTitle "playchess.com"]
[Source "ChessBase"]
[SourceQuality "1"]
[TimeControl "40/4500+30:900+30"]

1. d4 {[%emt 0:00:00]} d5 {[%emt 0:00:00]} 2. c4 {[%emt 0:00:00]} e5 {[%emt 0:00:00]} 3. cxd5 {[%emt 0:00:00]} Qxd5 {[%emt 0:00:00]} 4. dxe5 {[%emt 0:00:00]} Qxd1+ {[%emt 0:00:00]} 5. Kxd1 {[%emt 0:00:00]} Nc6 {[%emt 0:00:00]} 6. Nf3 {[%emt 0:00:00]} Nge7 {[%emt 0:00:00]} 7. Bf4 {[%emt 0:00:00]} Ng6 {[%emt 0:00:00]} 8. Bg3 {[%emt 0:00:00]} Bc5 {[%emt 0:00:00]} 9. e3 {[%emt 0:01:31]} Bg4 {[%emt 0:00:00]} 10. e6 {[%emt 0:02:14]} O-O-O+ {[%emt 0:00:00]} 11. Kc1 {[%emt 0:02:07]} Bxe6 {[%emt 0:00:00]} 12. Nc3 {[%emt 0:03:39]} a6 {[%emt 0:00:00]} 13. Ng5 {[%emt 0:04:55]} Nf8 {[%emt 0:12:34]} 14. Nxe6 {[%emt 0:04:44]} Nxe6 {[%emt 0:00:10]} 15. Bc4 {[%emt 0:01:13]} Rhe8 {[%emt 0:02:33]} 16. a3 {[%emt 0:07:50]} Bd6 {[%emt 0:04:53]} 17. Bh4 {[%emt 0:02:32]} f6 {[%emt 0:11:30]} 18. Bd5 {[%emt 0:09:33]} Ne5 {[%emt 0:11:02]} 19. Bxe6+ {[%emt 0:12:03]} Rxe6 {[%emt 0:00:28]} 20. Kc2 {[%emt 0:02:10]} Ng6 {[%emt 0:11:50]} 21. Bg3 {[%emt 0:01:33]} Re7 {[%emt 0:02:03]} 22. Bxd6 {[%emt 0:03:01]} Rxd6 {[%emt 0:00:15]} 23. Rad1 {[%emt 0:01:04]} Rxd1 {[%emt 0:01:21]} 24. Rxd1 {[%emt 0:00:07]} Rd7 {[%emt 0:00:11]} 25. Rxd7 {[%emt 0:01:00]} Kxd7 {[%emt 0:00:04]} 26. Ne4 {[%emt 0:02:45]} Nh4 {[%emt 0:04:27]} 27. g3 {[%emt 0:01:07]} Nf3 {[%emt 0:01:16]} 28. h4 {[%emt 0:01:35]} b6 {[%emt 0:02:11]} 29. Kd3 {[%emt 0:02:06]} Ne5+ {[%emt 0:01:59]} 30. Kd2 {[%emt 0:03:45]} Nf3+ 1/2-1/2

[Event "GER-ch Youth-U14w 2022"]
[Site "Willingen"]
[Date "2022.06.08"]
[Round "5.11"]
[White "Göb, Franziska"]
[Black "Heuberger, Sandra"]
[Result "0-1"]
[ECO "C57"]
[WhiteElo "1362"]
[BlackElo "1101"]
[Annotator "NA RC COMBH"]
[PlyCount "72"]
[EventDate "2022.06.05"]
[EventType "swiss"]
[EventRounds "9"]
[EventCountry "GER"]
[SourceTitle "playchess.com"]
[Source "ChessBase"]
[SourceQuality "1"]
[TimeControl "40/4500+30:900+30"]

1. e4 {[%emt 0:00:00]} e5 {[%emt 0:00:00]} 2. Nf3 {[%emt 0:00:00]} Nc6 {[%emt 0:00:00]} 3. Bc4 {[%emt 0:00:00]} Nf6 {[%emt 0:00:00]} 4. Ng5 {[%emt 0:00:00]} d5 {[%emt 0:00:00]} 5. exd5 {[%emt 0:00:00]} b5 {[%emt 0:00:00]} 6. Bxb5 {[%emt 0:00:00]} Qxd5 {[%emt 0:00:00]} 7. Bxc6+ {[%emt 0:00:00]} Qxc6 {[%emt 0:00:00]} 8. O-O {[%emt 0:00:00]} Bb7 {[%emt 0:00:00]} 9. Nf3 {[%emt 0:00:14]} Bc5 {[%emt 0:00:00]} 10. d3 {[%emt 0:05:17]} O-O {[%emt 0:00:00]} 11. Be3 {[%emt 0:03:23]} Bxe3 {[%emt 0:01:56]} 12. fxe3 {[%emt 0:01:06]} Rad8 {[%emt 0:03:10]} 13. Nbd2 {[%emt 0:05:42]} Ng4 {[%emt 0:08:10]} 14. Nc4 {[%emt 0:07:10]} e4 {[%emt 0:07:04]} 15. Ng5 {[%emt 0:10:54]} Nf6 {[%emt 0:08:05]} 16. Na5 {[%emt 0:04:56]} Qb6 {[%emt 0:05:33]} 17. Nc4 {[%emt 0:06:46]} Qc5 {[%emt 0:05:30]} 18. Nh3 {[%emt 0:04:45]} exd3 {[%emt 0:06:36]} 19. cxd3 {[%emt 0:00:32]} Nd7 {[%emt 0:03:00]} 20. b4 {[%emt 0:07:17]} Qc6 {[%emt 0:06:40]} 21. Qf3 {[%emt 0:03:00]} Qb5 {[%emt 0:02:33]} 22. Qg3 {[%emt 0:03:20]} Nb6 {[%emt 0:07:27]} 23. Qxc7 {[%emt 0:06:36]} Nxc4 {[%emt 0:01:13]} 24. Qxc4 {[%emt 0:02:05]} Qe5 {[%emt 0:01:10]} 25. Qf4 {[%emt 0:06:51]} Qd5 {[%emt 0:02:07]} 26. Qe4 {[%emt 0:03:29]} Qd7 {[%emt 0:01:45]} 27. Qd4 {[%emt 0:01:14]} Qa4 {[%emt 0:01:58]} 28. Qc4 {[%emt 0:01:22]} Qd7 {[%emt 0:03:34]} 29. d4 {[%emt 0:01:24]} Qe7 {[%emt 0:02:00]} 30. Qb3 {[%emt 0:01:25]} Qe4 {[%emt 0:00:43]} 31. Rf2 {[%emt 0:00:57]} Bd5 {[%emt 0:01:18]} 32. Qc3 {[%emt 0:00:22]} Rc8 {[%emt 0:00:48]} 33. Qd2 {[%emt 0:00:42]} Rfe8 {[%emt 0:02:04]} 34. Nf4 {[%emt 0:00:49]} Ba8 {[%emt 0:01:49]} 35. d5 {[%emt 0:00:40]} Qe5 {[%emt 0:02:05]} 36. Rd1 {[%emt 0:00:39]} Rcd8 {[%emt 0:01:40]} 0-1

[Event "GER-ch Youth-U14w 2022"]
[Site "Willingen"]
[Date "2022.06.08"]
[Round "5.12"]
[White "Modali, Nikhilamrutha"]
[Black "Steinlechner, Katja"]
[Result "1-0"]
[ECO "B27"]
[WhiteElo "1262"]
[BlackElo "1317"]
[Annotator "NA RC COMBH"]
[PlyCount "97"]
[EventDate "2022.06.05"]
[EventType "swiss"]
[EventRounds "9"]
[EventCountry "GER"]
[SourceTitle "playchess.com"]
[Source "ChessBase"]
[SourceQuality "1"]
[TimeControl "40/4500+30:900+30"]

1. e4 {[%emt 0:00:00]} c5 {[%emt 0:00:00]} 2. Nf3 {[%emt 0:00:00]} g6 {[%emt 0:00:00]} 3. d4 {[%emt 0:00:00]} cxd4 {[%emt 0:00:00]} 4. Qxd4 {[%emt 0:00:00]} Nf6 {[%emt 0:00:00]} 5. e5 {[%emt 0:00:00]} Nc6 {[%emt 0:00:00]} 6. Qa4 {[%emt 0:00:00]} Nd5 {[%emt 0:00:00]} 7. Qe4 {[%emt 0:00:00]} Nb6 {[%emt 0:00:00]} 8. Bf4 {[%emt 0:00:00]} d6 {[%emt 0:16:55]} 9. exd6 {[%emt 0:12:44]} Bf5 {[%emt 0:08:51]} 10. dxe7 {[%emt 0:05:46]} Bxe4 {[%emt 0:06:12]} 11. exd8=Q+ {[%emt 0:00:20]} Rxd8 {[%emt 0:01:01]} 12. c3 {[%emt 0:09:06]} Bg7 {[%emt 0:06:49]} 13. Nbd2 {[%emt 0:03:15]} Bf5 {[%emt 0:03:17]} 14. Bb5 {[%emt 0:06:11]} O-O {[%emt 0:05:12]} 15. O-O {[%emt 0:02:53]} a6 {[%emt 0:01:47]} 16. Bxc6 {[%emt 0:04:02]} bxc6 {[%emt 0:12:30]} 17. Bc7 {[%emt 0:01:09]} Nd5 {[%emt 0:04:29]} 18. Bxd8 {[%emt 0:00:24]} Rxd8 {[%emt 0:01:45]} 19. Nb3 {[%emt 0:01:51]} Nf4 {[%emt 0:02:23]} 20. Nfd4 Be4 {[%emt 0:03:46]} 21. f3 {[%emt 0:05:24]} Bd5 {[%emt 0:02:38]} 22. Rad1 {[%emt 0:02:49]} Bf6 {[%emt 0:03:30]} 23. Rfe1 {[%emt 0:06:22]} Kg7 {[%emt 0:02:16]} 24. Nc5 {[%emt 0:02:05]} a5 {[%emt 0:01:30]} 25. Ne4 {[%emt 0:01:19]} Bxe4 {[%emt 0:00:36]} 26. fxe4 {[%emt 0:01:21]} Rb8 {[%emt 0:01:22]} 27. e5 {[%emt 0:00:58]} Bg5 {[%emt 0:00:44]} 28. g3 {[%emt 0:01:09]} Ne6 {[%emt 0:00:22]} 29. h4 {[%emt 0:01:31]} Nxd4 {[%emt 0:00:57]} 30. cxd4 {[%emt 0:01:11]} Be7 {[%emt 0:00:20]} 31. b3 {[%emt 0:01:41]} Bb4 {[%emt 0:00:35]} 32. Re2 {[%emt 0:00:45]} Rd8 {[%emt 0:00:27]} 33. Rc2 {[%emt 0:00:47]} c5 {[%emt 0:00:21]} 34. d5 {[%emt 0:00:41]} h6 {[%emt 0:00:40]} 35. d6 {[%emt 0:00:27]} Kf8 {[%emt 0:00:22]} 36. Rf2 {[%emt 0:04:00]} c4 {[%emt 0:00:30]} 37. e6 {[%emt 0:01:28]} Rxd6 {[%emt 0:00:59]} 38. Rxf7+ {[%emt 0:00:53]} Ke8 {[%emt 0:00:17]} 39. Rxd6 {[%emt 0:00:13]} Bxd6 {[%emt 0:00:12]} 40. bxc4 {[%emt 0:00:27]} Bxg3 {[%emt 0:00:22]} 41. c5 {[%emt 0:16:39]} Bxh4 {[%emt 0:00:00]} 42. c6 {[%emt 0:00:00]} Bd8 {[%emt 0:00:00]} 43. c7 {[%emt 0:00:00]} Bxc7 {[%emt 0:00:00]} 44. Rxc7 {[%emt 0:00:00]} g5 {[%emt 0:00:00]} 45. a4 {[%emt 0:00:00]} g4 {[%emt 0:00:00]} 46. Ra7 {[%emt 0:00:00]} h5 {[%emt 0:00:00]} 47. Rxa5 {[%emt 0:00:00]} h4 {[%emt 0:00:00]} 48. Rh5 {[%emt 0:00:00]} Ke7 {[%emt 0:00:00]} 49. a5 {[%emt 0:00:00]} 1-0

[Event "GER-ch Youth-U14w 2022"]
[Site "Willingen"]
[Date "2022.06.08"]
[Round "5.13"]
[White "Hoffmann, Sophia"]
[Black "Brandt, Greta"]
[Result "0-1"]
[ECO "C04"]
[WhiteElo "1289"]
[BlackElo "1458"]
[Annotator "NA RC COMBH"]
[PlyCount "82"]
[EventDate "2022.06.05"]
[EventType "swiss"]
[EventRounds "9"]
[EventCountry "GER"]
[SourceTitle "playchess.com"]
[Source "ChessBase"]
[SourceQuality "1"]
[TimeControl "40/4500+30:900+30"]

1. e4 {[%emt 0:00:00]} e6 {[%emt 0:00:00]} 2. d4 {[%emt 0:00:00]} d5 {[%emt 0:00:00]} 3. Nd2 {[%emt 0:00:00]} Nc6 {[%emt 0:00:00]} 4. Ngf3 {[%emt 0:00:00]} Nf6 {[%emt 0:00:00]} 5. e5 {[%emt 0:00:00]} Nd7 {[%emt 0:00:00]} 6. Be2 {[%emt 0:00:00]} f6 {[%emt 0:00:00]} 7. exf6 {[%emt 0:00:00]} Qxf6 {[%emt 0:00:00]} 8. Nb3 {[%emt 0:00:00]} Bd6 {[%emt 0:00:00]} 9. O-O {[%emt 0:00:00]} O-O {[%emt 0:00:00]} 10. c4 {[%emt 0:00:00]} b6 {[%emt 0:00:00]} 11. Re1 {[%emt 0:20:17]} a5 {[%emt 0:06:39]} 12. a4 {[%emt 0:06:58]} Nb4 {[%emt 0:04:30]} 13. Bd3 {[%emt 0:02:58]} Nxd3 {[%emt 0:04:21]} 14. Qxd3 {[%emt 0:00:15]} Ba6 {[%emt 0:00:27]} 15. Nbd2 {[%emt 0:09:30]} Rae8 {[%emt 0:04:55]} 16. Qc2 {[%emt 0:05:58]} e5 {[%emt 0:10:23]} 17. cxd5 {[%emt 0:05:21]} exd4 {[%emt 0:00:58]} 18. Ne4 {[%emt 0:01:58]} Qf5 {[%emt 0:05:20]} 19. Nxd4 {[%emt 0:05:59]} Qxd5 {[%emt 0:01:07]} 20. Nf3 {[%emt 0:01:35]} Bd3 {[%emt 0:01:06]} 21. Nc3 {[%emt 0:01:43]} Qxf3 {[%emt 0:02:18]} 22. Qd2 {[%emt 0:07:38]} Rxe1+ {[%emt 0:01:50]} 23. Qxe1 {[%emt 0:00:05]} Qh5 {[%emt 0:02:58]} 24. h3 {[%emt 0:02:13]} Bc5 {[%emt 0:04:25]} 25. Bd2 {[%emt 0:03:25]} Bxf2+ {[%emt 0:00:50]} 26. Qxf2 {[%emt 0:01:18]} Rxf2 {[%emt 0:00:06]} 27. Kxf2 {[%emt 0:00:03]} Qh4+ {[%emt 0:03:13]} 28. Kg1 {[%emt 0:00:39]} Bc4 {[%emt 0:04:05]} 29. Re1 {[%emt 0:00:33]} Qf6 {[%emt 0:01:41]} 30. Re4 {[%emt 0:00:42]} Qf1+ {[%emt 0:01:17]} 31. Kh2 {[%emt 0:00:02]} Bf7 {[%emt 0:00:49]} 32. Rf4 {[%emt 0:00:51]} Qd3 {[%emt 0:00:55]} 33. Rf2 {[%emt 0:01:05]} Nf6 {[%emt 0:01:21]} 34. Bf4 {[%emt 0:00:52]} Qd4 {[%emt 0:00:56]} 35. Rf3 {[%emt 0:00:44]} Nd5 {[%emt 0:02:48]} 36. Ne2 {[%emt 0:01:18]} Qxa4 {[%emt 0:01:18]} 37. Bg3 {[%emt 0:01:44]} Bh5 {[%emt 0:00:56]} 38. Ra3 {[%emt 0:00:44]} Qe4 {[%emt 0:00:50]} 39. Ng1 {[%emt 0:01:03]} Ne3 {[%emt 0:00:39]} 40. Nf3 {[%emt 0:00:21]} Bxf3 {[%emt 0:00:46]} 41. gxf3 {[%emt 0:16:15]} Qc2+ {[%emt 0:15:24]} 0-1

[Event "GER-ch Youth-U14w 2022"]
[Site "Willingen"]
[Date "2022.06.08"]
[Round "5.14"]
[White "Margaryan, Sofia"]
[Black "Funke, Luise"]
[Result "1-0"]
[ECO "E06"]
[WhiteElo "1181"]
[BlackElo "970"]
[Annotator "NA RC COMBH"]
[PlyCount "69"]
[EventDate "2022.06.05"]
[EventType "swiss"]
[EventRounds "9"]
[EventCountry "GER"]
[SourceTitle "playchess.com"]
[Source "ChessBase"]
[SourceQuality "1"]
[TimeControl "40/4500+30:900+30"]

1. d4 d5 2. c4 e6 3. Nf3 Nf6 4. g3 Be7 5. Bg2 O-O 6. cxd5 exd5 7. O-O Be6 8. Nc3 c6 9. Qc2 Nbd7 10. a3 Re8 11. b4 Nf8 12. Ne5 Bd6 13. Nf3 Ng6 14. Bg5 Be7 15. e3 Nh5 16. Bxe7 Rxe7 17. Rac1 Qd7 18. a4 Bg4 19. Qb2 Rae8 20. Rfe1 Bh3 21. Qd2 Qg4 22. Ne2 Nf6 23. Qb2 Bxg2 24. Kxg2 Ne4 25. h3 Qh5 26. Rh1 Qf5 27. h4 Qg4 28. h5 Nf8 29. Rh4 Qe6 30. Nc3 Nd7 31. Nd2 Ndf6 32. h6 Ng4 33. Ncxe4 dxe4 34. d5 cxd5 35. Qxg7# 1-0

[Event "GER-ch Youth-U14w 2022"]
[Site "Willingen"]
[Date "2022.06.08"]
[Round "5.15"]
[White "Marrufo, Emilia"]
[Black "Lorenz, Rebecca"]
[Result "1-0"]
[ECO "D00"]
[WhiteElo "998"]
[BlackElo "733"]
[Annotator "NA RC COMBH"]
[PlyCount "113"]
[EventDate "2022.06.05"]
[EventType "swiss"]
[EventRounds "9"]
[EventCountry "GER"]
[SourceTitle "playchess.com"]
[Source "ChessBase"]
[SourceQuality "1"]
[TimeControl "40/4500+30:900+30"]

1. d4 {[%emt 0:00:00]} d5 {[%emt 0:00:00]} 2. Bf4 {[%emt 0:00:00]} Bf5 {[%emt 0:00:00]} 3. e3 {[%emt 0:00:00]} Nc6 {[%emt 0:00:00]} 4. c3 {[%emt 0:00:00]} e6 {[%emt 0:00:00]} 5. Nf3 {[%emt 0:00:00]} Nf6 {[%emt 0:00:00]} 6. Qb3 {[%emt 0:00:00]} Rb8 {[%emt 0:00:00]} 7. Bb5 {[%emt 0:00:00]} Be7 {[%emt 0:00:00]} 8. Ne5 {[%emt 0:00:00]} O-O {[%emt 0:00:00]} 9. Qa4 {[%emt 0:00:00]} Ne4 {[%emt 0:02:59]} 10. Bxc6 {[%emt 0:00:42]} Qc8 {[%emt 0:03:14]} 11. Nd7 {[%emt 0:02:44]} bxc6 {[%emt 0:01:12]} 12. Nxb8 {[%emt 0:00:25]} Qxb8 {[%emt 0:03:06]} 13. b3 {[%emt 0:01:13]} Rc8 {[%emt 0:02:47]} 14. Qxc6 {[%emt 0:00:59]} Bh4 15. g3 {[%emt 0:02:41]} Bf6 {[%emt 0:08:12]} 16. f3 {[%emt 0:03:03]} Nd6 {[%emt 0:04:44]} 17. Nd2 {[%emt 0:04:18]} Qb5 {[%emt 0:02:47]} 18. Qxb5 {[%emt 0:00:37]} Nxb5 {[%emt 0:00:09]} 19. c4 {[%emt 0:02:35]} Na3 {[%emt 0:01:47]} 20. O-O {[%emt 0:02:26]} dxc4 {[%emt 0:00:59]} 21. bxc4 {[%emt 0:00:52]} Bh3 {[%emt 0:03:16]} 22. Rf2 {[%emt 0:00:51]} Be7 {[%emt 0:01:43]} 23. g4 {[%emt 0:00:46]} Bh4 {[%emt 0:01:16]} 24. Bg3 {[%emt 0:00:57]} Bg5 {[%emt 0:01:00]} 25. Re2 {[%emt 0:01:38]} Rb8 {[%emt 0:01:49]} 26. Ne4 {[%emt 0:01:42]} Be7 {[%emt 0:01:20]} 27. Nf2 {[%emt 0:00:24]} Bxg4 {[%emt 0:03:02]} 28. fxg4 {[%emt 0:00:13]} c5 {[%emt 0:01:36]} 29. Bxb8 {[%emt 0:00:30]} a5 {[%emt 0:01:22]} 30. Rb2 {[%emt 0:01:27]} Nxc4 {[%emt 0:00:56]} 31. Bc7 {[%emt 0:00:54]} Nxb2 {[%emt 0:00:22]} 32. Rb1 {[%emt 0:00:18]} c4 {[%emt 0:01:08]} 33. Rxb2 {[%emt 0:00:27]} f6 {[%emt 0:00:06]} 34. Rb8+ {[%emt 0:00:59]} Kf7 {[%emt 0:00:06]} 35. Rb7 {[%emt 0:00:51]} Ke8 {[%emt 0:01:10]} 36. Ne4 {[%emt 0:00:59]} a4 {[%emt 0:00:27]} 37. Bd6 {[%emt 0:00:53]} Bxd6 {[%emt 0:00:21]} 38. Nxd6+ {[%emt 0:00:07]} Kd8 {[%emt 0:00:21]} 39. Nxc4 {[%emt 0:00:36]} Kc8 {[%emt 0:00:56]} 40. Rxg7 {[%emt 0:00:10]} h6 {[%emt 0:00:25]} 41. e4 {[%emt 0:15:38]} f5 {[%emt 0:15:41]} 42. gxf5 {[%emt 0:00:17]} exf5 {[%emt 0:00:11]} 43. exf5 {[%emt 0:00:15]} Kd8 {[%emt 0:00:17]} 44. f6 {[%emt 0:00:38]} Ke8 {[%emt 0:00:09]} 45. Ra7 {[%emt 0:00:53]} h5 {[%emt 0:00:37]} 46. d5 {[%emt 0:00:16]} h4 {[%emt 0:00:17]} 47. d6 {[%emt 0:00:18]} h3 {[%emt 0:00:43]} 48. d7+ {[%emt 0:00:13]} Kd8 {[%emt 0:00:46]} 49. f7 {[%emt 0:00:00]} Ke7 {[%emt 0:00:17]} 50. f8=Q+ Ke6 51. Qh6+ {[%emt 0:02:05]} Kd5 {[%emt 0:00:55]} 52. d8=Q+ {[%emt 0:01:14]} Kxc4 {[%emt 0:00:21]} 53. Rc7+ {[%emt 0:01:07]} Kb4 {[%emt 0:00:29]} 54. Qb6+ {[%emt 0:00:16]} Ka3 {[%emt 0:00:26]} 55. Qd3+ {[%emt 0:00:49]} Kxa2 {[%emt 0:00:25]} 56. Rc2+ {[%emt 0:00:30]} Ka1 {[%emt 0:00:23]} 57. Qf1# 1-0

[Event "GER-ch Youth-U14w 2022"]
[Site "Willingen"]
[Date "2022.06.08"]
[Round "6.1"]
[White "Braeutigam, Katerina"]
[Black "Peglau, Dora"]
[Result "1/2-1/2"]
[ECO "C02"]
[WhiteElo "1860"]
[BlackElo "2008"]
[Annotator "TA"]
[PlyCount "49"]
[EventDate "2022.06.05"]
[EventType "swiss"]
[EventRounds "9"]
[EventCountry "GER"]
[SourceTitle "playchess.com"]
[Source "ChessBase"]
[SourceQuality "1"]
[TimeControl "40/4500+30:900+30"]

{[%evp 11,49,15,21,-5,-11,-11,14,19,40,39,33,0,0,-1,0,0,0,-19,-18,-18,-17,-14,0,0,15,-54,-7,-135,-135,-110,-115,-95,0,0,0,0,0,0,0,0]} 1. e4 {[%emt 0:00:00]} e6 {[%emt 0:00:00]} 2. d4 {[%emt 0:00:00]} d5 {[%emt 0:00:00]} 3. e5 {[%emt 0:00:00]} c5 {[%emt 0:00:00]} 4. c3 {[%emt 0:00:00]} Ne7 {[%emt 0:00:00]} 5. Nf3 {[%emt 0:00:00]} Nec6 {[%emt 0:00:00]} 6. a3 {[%emt 0:00:00]} a5 {[%emt 0:00:00]} 7. dxc5 {[%emt 0:00:00] [#] C02: French: Advance Variation.} Bxc5 $146 {[%emt 0:00:00] White should prevent ...Nd7.} ({Predecessor:} 7... Nd7 8. Bf4 Bxc5 9. Bd3 f6 10. exf6 Nxf6 11. O-O O-O 12. Nbd2 Ne4 13. Be3 Bxe3 14. fxe3 Nc5 {0-1 (38) Schwekendiek,U (2340)-Buchenau,F (2211) Bad Lauterberg 1999}) 8. Bd3 {[%emt 0:00:00]} b6 {[%emt 0:00:00]} 9. O-O {[%emt 0:00:00]} Be7 {[%emt 0:00:00]} 10. Re1 {[%emt 0:02:56]} Ba6 {[%emt 0:00:00]} 11. Nd4 {[%emt 0:03:21]} Bxd3 {[%emt 0:00:00]} 12. Qxd3 {[%emt 0:00:42]} O-O {[%emt 0:00:00]} 13. Qg3 {[%emt 0:07:04] Threatens to win with Bh6.} Kh8 {[%emt 0:02:42]} 14. Nd2 {[%emt 0:05:11]} Nxd4 {[%emt 0:02:19]} 15. cxd4 {[%emt 0:00:29]} Nc6 {[%emt 0:01:05]} 16. Qd3 {[%emt 0:04:28]} Qd7 {[%emt 0:11:01]} 17. Re3 {[%emt 0:12:09]} f5 {[%emt 0:11:00]} 18. f4 {[%emt 0:25:01]} (18. exf6 $11 Bxf6 19. Nf3 (19. Rh3 g5 $17)) 18... Qb7 {[%emt 0:07:22]} (18... a4 $15) 19. Rh3 {[%emt 0:05:02] [#]} (19. Nf3 $11 {remains equal.}) 19... Nxd4 $1 $17 {[%emt 0:01:41][%cal Of8c8][%mdl 512]} 20. Kh1 {[%emt 0:03:57]} ({Avoid the trap} 20. Qxd4 $2 Bc5 21. Nb3 Bxd4+ $19) (20. Kf1 Bc5) 20... Nc6 {[%emt 0:02:11]} 21. Qg3 {[%emt 0:03:53] [#]} Qa6 {[%emt 0:02:40]} (21... Kg8 $1 $17 {And now ...Qa6 would win.} 22. Nf3 d4) 22. Qg6 $1 $11 {[%emt 0:01:18][%csl Gh3][%cal Rg6h7] The position is equal.} h6 {[%emt 0:00:41]} 23. Rxh6+ {[%emt 0:10:50]} gxh6 {[%emt 0:00:05]} 24. Qxh6+ {[%emt 0:00:12]} Kg8 {[%emt 0:00:03]} 25. Qg6+ {[%emt 0:00:21] Weighted Error Value: White=0.27 (precise) /Black=0.12 (very precise)} 1/2-1/2

[Event "GER-ch Youth-U14w 2022"]
[Site "Willingen"]
[Date "2022.06.08"]
[Round "6.2"]
[White "Jacobasch, Ronja"]
[Black "Lorenz, Veronika"]
[Result "0-1"]
[ECO "A00"]
[WhiteElo "1441"]
[BlackElo "1510"]
[Annotator "NA RC COMBH"]
[PlyCount "133"]
[EventDate "2022.06.05"]
[EventType "swiss"]
[EventRounds "9"]
[EventCountry "GER"]
[SourceTitle "playchess.com"]
[Source "ChessBase"]
[SourceQuality "1"]
[TimeControl "40/4500+30:900+30"]

1. g3 {[%emt 0:00:00]} Nf6 {[%emt 0:00:00]} 2. Bg2 {[%emt 0:00:00]} g6 {[%emt 0:00:00]} 3. c4 {[%emt 0:00:00]} Bg7 {[%emt 0:00:00]} 4. d3 {[%emt 0:00:00]} O-O {[%emt 0:00:00]} 5. e4 {[%emt 0:00:00]} d6 {[%emt 0:00:00]} 6. Ne2 {[%emt 0:00:00]} c5 {[%emt 0:00:00]} 7. O-O {[%emt 0:00:00]} Nc6 {[%emt 0:00:00]} 8. Nbc3 {[%emt 0:00:00]} Bg4 {[%emt 0:00:43]} 9. h3 {[%emt 0:00:00]} Bxe2 {[%emt 0:00:10]} 10. Nxe2 {[%emt 0:00:00]} e6 {[%emt 0:04:13]} 11. f4 {[%emt 0:01:14]} Qd7 {[%emt 0:02:45]} 12. Be3 {[%emt 0:02:20]} a6 {[%emt 0:02:35]} 13. Nc3 {[%emt 0:03:24]} Rab8 {[%emt 0:02:28]} 14. a3 {[%emt 0:02:53]} Rfd8 {[%emt 0:07:28]} 15. Ne2 {[%emt 0:05:07]} b5 {[%emt 0:07:26]} 16. Qc2 {[%emt 0:04:08]} Ne8 {[%emt 0:06:29]} 17. Rab1 {[%emt 0:03:15]} a5 {[%emt 0:08:26]} 18. b3 {[%emt 0:06:39]} Rb7 {[%emt 0:05:13]} 19. Rfd1 {[%emt 0:04:00]} bxc4 {[%emt 0:05:33]} 20. bxc4 {[%emt 0:06:22]} Rdb8 {[%emt 0:00:39]} 21. Bd2 {[%emt 0:05:32]} Nd4 {[%emt 0:03:58]} 22. Nxd4 {[%emt 0:00:24]} Bxd4+ {[%emt 0:00:02]} 23. Kh2 {[%emt 0:02:05]} Rb2 {[%emt 0:00:20]} 24. Rxb2 {[%emt 0:00:45]} Rxb2 {[%emt 0:00:02]} 25. Qc1 {[%emt 0:01:24]} Qa4 {[%emt 0:04:48]} 26. Be1 {[%emt 0:12:28]} Qxa3 {[%emt 0:07:06]} 27. Rd2 {[%emt 0:07:30]} a4 {[%emt 0:00:42]} 28. Bf3 {[%emt 0:08:05]} Qa2 {[%emt 0:07:11]} 29. Bd1 {[%emt 0:04:08]} a3 {[%emt 0:00:53]} 30. Rc2 {[%emt 0:05:37]} Be3 {[%emt 0:03:38]} 31. Qxe3 {[%emt 0:02:06]} Rxc2+ {[%emt 0:00:06]} 32. Bxc2 {[%emt 0:00:10]} Qxc2+ {[%emt 0:00:04]} 33. Qd2 {[%emt 0:00:36]} Qb1 {[%emt 0:01:13]} 34. Qa5 {[%emt 0:01:23]} a2 {[%emt 0:04:12]} 35. Bc3 {[%emt 0:00:23]} Qc2+ {[%emt 0:00:07]} 36. Kg1 {[%emt 0:00:54]} Qxd3 {[%emt 0:01:26]} 37. Kh2 {[%emt 0:00:34]} Qe2+ {[%emt 0:00:38]} 38. Kg1 {[%emt 0:00:21]} Qe3+ {[%emt 0:00:31]} 39. Kh2 {[%emt 0:00:13]} Qf2+ {[%emt 0:00:10]} 40. Kh1 {[%emt 0:00:09]} Qxg3 {[%emt 0:00:30]} 41. e5 {[%emt 0:00:00]} Qxh3+ {[%emt 0:00:00]} 42. Kg1 {[%emt 0:00:00]} Qg3+ {[%emt 0:00:00]} 43. Kh1 {[%emt 0:00:00]} Kf8 {[%emt 0:00:00]} 44. exd6 {[%emt 0:00:00]} Qf3+ {[%emt 0:00:00]} 45. Kg1 {[%emt 0:00:00]} Nxd6 {[%emt 0:00:00]} 46. Bf6 {[%emt 0:00:00]} Qd1+ {[%emt 0:00:00]} 47. Kg2 {[%emt 0:00:26]} Qc2+ {[%emt 0:00:00]} 48. Kg1 {[%emt 0:00:50]} Qb1+ {[%emt 0:00:00]} 49. Kh2 {[%emt 0:02:02]} Qc2+ {[%emt 0:00:00]} 50. Kg1 {[%emt 0:00:38]} Qd1+ {[%emt 0:00:00]} 51. Kg2 {[%emt 0:01:01]} Qe2+ {[%emt 0:00:00]} 52. Kg1 {[%emt 0:01:52]} Qe3+ {[%emt 0:00:00]} 53. Kg2 {[%emt 0:00:45]} Ne8 {[%emt 0:01:22]} 54. Qd8 {[%emt 0:03:28]} Qe4+ {[%emt 0:00:13]} 55. Kg3 {[%emt 0:02:23]} Qc6 {[%emt 0:00:27]} 56. Be5 {[%emt 0:06:32]} Qa4 {[%emt 0:04:53]} 57. Ba1 {[%emt 0:01:48]} Qb3+ {[%emt 0:03:26]} 58. Kg4 {[%emt 0:01:22]} f5+ {[%emt 0:02:15]} 59. Kh4 {[%emt 0:00:23]} Qb7 {[%emt 0:03:24]} 60. Kg3 {[%emt 0:01:09]} h5 {[%emt 0:04:46]} 61. Be5 {[%emt 0:01:18]} Qa7 {[%emt 0:07:09]} 62. Ba1 {[%emt 0:00:39]} Qc7 {[%emt 0:00:47]} 63. Qa8 {[%emt 0:00:34]} g5 {[%emt 0:00:51]} 64. Be5 {[%emt 0:00:26]} gxf4+ {[%emt 0:00:14]} 65. Kxf4 {[%emt 0:00:24]} Qf7 {[%emt 0:00:56]} 66. Bd6+ {[%emt 0:00:46]} Kg7 {[%emt 0:00:30]} 67. Qg2+ 0-1